fUSD/lending_fUSD_20250504
["ID","MTS","AMOUNT","RATE_DAILY","PERIOD"]
[359849222,1746371458025,-150.0,0.00019993,2]
[359849223,1746371458035,-500.0,0.00019998,2]
[359849224,1746371458044,-500.0,0.00019998,2]
[359849225,1746371458054,-500.0,0.00019998,2]
[359849226,1746371458063,-500.0,0.00019998,2]
[359849227,1746371458072,-500.0,0.00019999,2]
[359849228,1746371458082,-500.0,0.00019999,2]
[359849229,1746371458091,-500.0,0.00019999,2]
[359849230,1746371458101,-21897.5280696,0.00019999,2]
[359849231,1746371458111,-253393.11358569,0.00019999,7]
[359849232,1746371458335,-151.0,0.0001984,2]
[359849233,1746371458345,-18225.77629069,0.00019999,7]
[359849234,1746371458356,-559.89313168,0.00019999,7]
[359849235,1746371458368,-1932.56244196,0.00019999,7]
[359849236,1746371458379,-2000.0,0.00019999,7]
[359849237,1746371458395,-1083.09998,0.00019999,7]
[359849238,1746371458422,-495.98036314,0.00019999,7]
[359849239,1746371458438,-5570.45453968,0.00019999,7]
[359849240,1746371458449,-5888.12613649,0.00019999,7]
[359849241,1746371502048,363.14,0.00018873,2]
[359849242,1746371532262,150.0,1e-08,2]
[359849243,1746371635762,174.39,0.00015066,2]
[359849244,1746371705451,1840.79,0.00019,2]
[359849245,1746371707032,1840.79,0.00019,2]
[359849246,1746371733596,150.0,1e-08,2]
[359849247,1746371741800,1263.26,0.0001882,2]
[359849248,1746371827845,157.069093,0.0003,33]
[359849249,1746371828191,157.069093,0.0003,33]
[359849250,1746371828497,157.069093,0.0003,35]
[359849251,1746371829454,157.069093,0.0003,31]
[359849252,1746371859722,627.07,0.00018809,2]
[359849253,1746371860802,-176.51281845,0.00019526,2]
[359849254,1746371925661,17775.09,0.00018818,2]
[359849255,1746371933662,150.0,0.00018818,2]
[359849256,1746371935324,500.0,0.00027945,30]
[359849257,1746371935927,500.0,0.00029315,35]
[359849258,1746371936938,166.31,0.00019382,2]
[359849259,1746371960115,500.0,0.00027945,30]
[359849260,1746371960364,500.0,0.00029315,30]
[359849261,1746372091857,1190.36,0.00018764,2]
[359849262,1746372170243,450.0,0.0003,30]
[359849263,1746372264779,1174.34,0.00016875,2]
[359849264,1746372264982,1174.34,0.00019139,2]
[359849265,1746372299651,1852.42,0.00018784,2]
[359849277,1746372341308,456.37,0.00018785,2]
[359849301,1746372490175,247.9,0.0001877,2]
[359849302,1746372491752,283.83,0.0001877,2]
[359849303,1746372492305,1000.0,0.0001877,2]
[359849311,1746372551843,3000.0,0.0001877,2]
[359849312,1746372555278,-207.4,0.00019614,2]
[359849313,1746372555300,-200.0,0.00019619,2]
[359849314,1746372555328,-1200.0,0.00019624,2]
[359849315,1746372555351,-300.0,0.00019624,2]
[359849316,1746372555372,-195.0154014,0.00019625,2]
[359849317,1746372555393,-183.8672,0.00019625,2]
[359849318,1746372555426,-500.0,0.00019625,2]
[359849319,1746372555457,-500.0,0.00019625,2]
[359849320,1746372555487,-500.0,0.00019625,2]
[359849321,1746372555518,-500.0,0.00019625,2]
[359849322,1746372555548,-500.0,0.00019625,2]
[359849323,1746372555578,-500.0,0.00019625,2]
[359849324,1746372555609,-500.0,0.00019625,2]
[359849325,1746372555631,-213.7173986,0.00019626,2]
[359849326,1746372566845,-107.65622123,0.00019626,2]
[359849327,1746372566870,-4892.34377877,0.00019626,2]
[359849328,1746372576367,-5000.0,0.00019626,2]
[359849329,1746372585217,-3135.95118093,0.00019626,2]
[359849330,1746372585239,-1864.04881907,0.00019626,2]
[359849331,1746372593827,-5000.0,0.00019626,2]
[359849332,1746372595736,500.0,0.00027945,30]
[359849333,1746372595990,500.0,0.00029315,30]
[359849334,1746372602899,-1200.0,0.00019625,2]
[359849335,1746372602922,-3800.0,0.00019626,2]
[359849336,1746372606607,153.9303394,6.476e-05,2]
[359849343,1746372631902,-183.8672,0.00019625,2]
[359849344,1746372631912,-257.8138,0.00019626,2]
[359849346,1746372631954,-353.55172949,0.00019626,2]
[359849347,1746372631965,-21933.87089288,0.00019626,2]
[359849348,1746372631999,-300.0,0.00019626,2]
[359849349,1746372632010,-411.48637732,0.00019626,2]
[359849350,1746372632043,-51411.97015038,0.00019626,2]
[359849351,1746372632053,-247.9801,0.00019626,2]
[359849352,1746372632062,-287.7029,0.00019653,2]
[359849353,1746372632071,-321.37361981,0.00019656,2]
[359849354,1746372632081,-3135.95118091,0.00019656,2]
[359849355,1746372632090,-196.66214302,0.0001968,2]
[359849356,1746372632099,-321.37361981,0.00019687,2]
[359849357,1746372632108,-3135.95118091,0.00019687,2]
[359849358,1746372632117,-169.66584874,0.00019708,2]
[359849359,1746372632127,-299.6,0.00019716,2]
[359849360,1746372632136,-321.37361981,0.00019717,2]
[359849361,1746372632145,-3135.95118091,0.00019717,2]
[359849362,1746372632154,-203.13745863,0.00019726,2]
[359849363,1746372632163,-450.0,0.00019726,2]
[359849364,1746372632173,-546.34327251,0.00019726,2]
[359849365,1746372632182,-486.08337216,0.00019726,2]
[359849366,1746372632192,-494.98248221,0.00019726,2]
[359849367,1746372632201,-450.0,0.00019726,2]
[359849368,1746372632210,-450.0,0.00019726,2]
[359849369,1746372632219,-450.0,0.00019726,2]
[359849370,1746372632229,-250.0,0.00019726,2]
[359849371,1746372632238,-450.0,0.00019726,2]
[359849372,1746372632247,-450.0,0.00019726,2]
[359849373,1746372632256,-472.74752259,0.00019726,2]
[359849374,1746372632266,-450.0,0.00019726,2]
[359849375,1746372632275,-477.08386829,0.00019726,2]
[359849377,1746372632284,-450.0,0.00019726,2]
[359849379,1746372632293,-450.0,0.00019726,2]
[359849381,1746372632303,-315.47385184,0.00019726,2]
[359849383,1746372632313,-450.0,0.00019726,2]
[359849385,1746372632326,-450.0,0.00019726,2]
[359849387,1746372632335,-450.0,0.00019726,2]
[359849389,1746372632345,-450.0,0.00019726,2]
[359849391,1746372632354,-450.0,0.00019726,2]
[359849393,1746372632365,-450.0,0.00019726,2]
[359849395,1746372632374,-450.0,0.00019726,2]
[359849397,1746372632384,-450.0,0.00019726,2]
[359849399,1746372632393,-450.0,0.00019726,2]
[359849400,1746372632405,-450.0,0.00019726,2]
[359849402,1746372632415,-450.0,0.00019726,2]
[359849404,1746372632424,-470.0,0.00019726,2]
[359849406,1746372632433,-450.0,0.00019726,2]
[359849408,1746372632442,-450.0,0.00019726,2]
[359849411,1746372632452,-450.0,0.00019726,2]
[359849414,1746372632461,-450.0,0.00019726,2]
[359849416,1746372632470,-450.0,0.00019726,2]
[359849418,1746372632479,-491.43031295,0.00019726,2]
[359849421,1746372632489,-450.0,0.00019726,2]
[359849424,1746372632498,-450.0,0.00019726,2]
[359849427,1746372632507,-490.0,0.00019726,2]
[359849428,1746372632516,-450.0,0.00019726,2]
[359849430,1746372632526,-928.04,0.00019726,2]
[359849433,1746372632536,-450.0,0.00019726,2]
[359849435,1746372632545,-450.0,0.00019726,2]
[359849437,1746372632554,-470.0,0.00019726,2]
[359849439,1746372632564,-450.0,0.00019726,2]
[359849441,1746372632573,-450.0,0.00019726,2]
[359849443,1746372632582,-450.0,0.00019726,2]
[359849445,1746372632591,-450.0,0.00019726,2]
[359849447,1746372632600,-450.0,0.00019726,2]
[359849449,1746372632610,-450.0,0.00019726,2]
[359849451,1746372632619,-450.0,0.00019726,2]
[359849453,1746372632629,-580.05,0.00019726,2]
[359849455,1746372632638,-297.01205538,0.00019726,2]
[359849458,1746372632661,-152.98794462,0.00019726,2]
[359849460,1746372632671,-450.0,0.00019726,2]
[359849462,1746372632680,-450.0,0.00019726,2]
[359849464,1746372632689,-450.0,0.00019726,2]
[359849466,1746372632698,-450.0,0.00019726,2]
[359849468,1746372632708,-450.0,0.00019726,2]
[359849470,1746372632717,-450.0,0.00019726,2]
[359849472,1746372632726,-450.0,0.00019726,2]
[359849474,1746372632734,-450.0,0.00019726,2]
[359849476,1746372632743,-450.0,0.00019726,2]
[359849478,1746372632753,-450.0,0.00019726,2]
[359849480,1746372632762,-470.0,0.00019726,2]
[359849482,1746372632771,-450.0,0.00019726,2]
[359849484,1746372632780,-154.59535466,0.00019726,2]
[359849486,1746372632789,-450.0,0.00019726,2]
[359849488,1746372632798,-509.28013165,0.00019726,2]
[359849490,1746372632808,-453.81827415,0.00019726,2]
[359849492,1746372632817,-400.0,0.00019726,2]
[359849494,1746372632826,-470.0,0.00019726,2]
[359849496,1746372632836,-450.0,0.00019726,2]
[359849498,1746372632845,-450.0,0.00019726,2]
[359849500,1746372632855,-450.0,0.00019726,2]
[359849502,1746372632864,-450.0,0.00019726,2]
[359849504,1746372632873,-450.0,0.00019726,2]
[359849506,1746372632883,-450.0,0.00019726,2]
[359849508,1746372632892,-392.71548483,0.00019726,2]
[359849510,1746372632904,-57.28451517,0.00019726,2]
[359849512,1746372632914,-450.0,0.00019726,2]
[359849514,1746372632923,-83.26622154,0.00019726,2]
[359849516,1746372632935,-366.73377846,0.00019726,2]
[359849518,1746372632944,-450.0,0.00019726,2]
[359849520,1746372632953,-470.0,0.00019726,2]
[359849522,1746372632962,-165.91031914,0.00019726,2]
[359849526,1746372632989,-284.08968086,0.00019726,2]
[359849528,1746372632998,-173.91129694,0.00019726,2]
[359849646,1746372638030,-276.08870306,0.00019726,2]
[359849647,1746372638039,-450.0,0.00019726,2]
[359849648,1746372638049,-450.0,0.00019726,2]
[359849649,1746372638058,-450.0,0.00019726,2]
[359849650,1746372638067,-145.1644966,0.00019726,2]
[359849651,1746372638079,-304.8355034,0.00019726,2]
[359849652,1746372638088,-492.01,0.00019726,2]
[359849653,1746372638098,-450.0,0.00019726,2]
[359849654,1746372638107,-450.0,0.00019726,2]
[359849655,1746372638116,-450.0,0.00019726,2]
[359849656,1746372638126,-450.0,0.00019726,2]
[359849657,1746372638135,-341.36385095,0.00019726,2]
[359849658,1746372638144,-540.4,0.00019726,2]
[359849659,1746372638153,-450.0,0.00019726,2]
[359849660,1746372638162,-450.0,0.00019726,2]
[359849661,1746372638172,-450.0,0.00019726,2]
[359849662,1746372638181,-450.0,0.00019726,2]
[359849663,1746372638190,-450.0,0.00019726,2]
[359849664,1746372638199,-450.0,0.00019726,2]
[359849665,1746372638208,-67.00635962,0.00019726,2]
[359849666,1746372638238,-382.99364038,0.00019726,2]
[359849667,1746372638247,-473.30787121,0.00019726,2]
[359849668,1746372638256,-450.0,0.00019726,2]
[359849669,1746372638265,-472.37385001,0.00019726,2]
[359849670,1746372638274,-450.0,0.00019726,2]
[359849671,1746372638283,-450.0,0.00019726,2]
[359849672,1746372638292,-450.0,0.00019726,2]
[359849673,1746372638301,-450.0,0.00019726,2]
[359849674,1746372638310,-564.76270474,0.00019726,2]
[359849675,1746372638321,-475.20018243,0.00019726,2]
[359849676,1746372638331,-450.0,0.00019726,2]
[359849677,1746372638340,-450.0,0.00019726,2]
[359849678,1746372638349,-432.21783713,0.00019726,2]
[359849679,1746372638361,-17.78216287,0.00019726,2]
[359849680,1746372638370,-450.0,0.00019726,2]
[359849681,1746372638379,-542.80425916,0.00019726,2]
[359849682,1746372638388,-174.05405849,0.00019726,2]
[359849683,1746372638401,-358.24234144,0.00019726,2]
[359849684,1746372638410,-450.0,0.00019726,2]
[359849685,1746372638420,-450.0,0.00019726,2]
[359849686,1746372638429,-77.86305537,0.00019726,2]
[359849714,1746372640198,-1832.424,0.00019626,2]
[359849715,1746372640208,-372.13694463,0.00019726,2]
[359849717,1746372640217,-450.0,0.00019726,2]
[359849718,1746372640226,-450.0,0.00019726,2]
[359849720,1746372640236,-450.0,0.00019726,2]
[359849721,1746372640245,-450.0,0.00019726,2]
[359849723,1746372640254,-450.0,0.00019726,2]
[359849724,1746372640263,-450.0,0.00019726,2]
[359849725,1746372640272,-450.0,0.00019726,2]
[359849726,1746372640281,-450.0,0.00019726,2]
[359849727,1746372640290,-450.0,0.00019726,2]
[359849728,1746372640300,-478.32781497,0.00019726,2]
[359849729,1746372640309,-450.0,0.00019726,2]
[359849730,1746372640320,-470.0,0.00019726,2]
[359849731,1746372640329,-520.80264636,0.00019726,2]
[359849732,1746372640338,-450.0,0.00019726,2]
[359849733,1746372640347,-350.12039404,0.00019726,2]
[359849734,1746372640359,-99.87960596,0.00019726,2]
[359849735,1746372640369,-450.0,0.00019726,2]
[359849736,1746372640378,-475.9586103,0.00019726,2]
[359849737,1746372640388,-450.0,0.00019726,2]
[359849738,1746372640400,-450.0,0.00019726,2]
[359849739,1746372640410,-450.0,0.00019726,2]
[359849740,1746372640420,-472.82180918,0.00019726,2]
[359849741,1746372640429,-450.0,0.00019726,2]
[359849742,1746372640438,-450.0,0.00019726,2]
[359849743,1746372640447,-470.0,0.00019726,2]
[359849744,1746372640457,-499.27,0.00019726,2]
[359849745,1746372640466,-450.0,0.00019726,2]
[359849746,1746372640475,-450.0,0.00019726,2]
[359849747,1746372640485,-450.0,0.00019726,2]
[359849748,1746372640494,-529.73804651,0.00019726,2]
[359849749,1746372640503,-450.0,0.00019726,2]
[359849750,1746372640513,-450.0,0.00019726,2]
[359849751,1746372640522,-538.64963933,0.00019726,2]
[359849752,1746372640531,-546.06261025,0.00019726,2]
[359849753,1746372640540,-450.0,0.00019726,2]
[359849754,1746372640549,-450.0,0.00019726,2]
[359849755,1746372640559,-59.19506046,0.00019726,2]
[359849756,1746372640571,-382.26942703,0.00019726,2]
[359849757,1746372640587,-8.53551251,0.00019726,2]
[359849758,1746372640597,-450.0,0.00019726,2]
[359849759,1746372640607,-450.0,0.00019726,2]
[359849760,1746372640616,-450.0,0.00019726,2]
[359849761,1746372640626,-481.48330317,0.00019726,2]
[359849762,1746372640635,-450.0,0.00019726,2]
[359849763,1746372640644,-450.0,0.00019726,2]
[359849764,1746372640654,-450.0,0.00019726,2]
[359849765,1746372640663,-450.0,0.00019726,2]
[359849766,1746372640672,-450.0,0.00019726,2]
[359849767,1746372640682,-597.27889646,0.00019726,2]
[359849768,1746372640692,-450.0,0.00019726,2]
[359849769,1746372640701,-450.0,0.00019726,2]
[359849770,1746372640710,-450.0,0.00019726,2]
[359849771,1746372640719,-450.0,0.00019726,2]
[359849772,1746372640729,-470.0,0.00019726,2]
[359849773,1746372640738,-450.0,0.00019726,2]
[359849774,1746372640748,-450.0,0.00019726,2]
[359849775,1746372640760,-500.0,0.00019726,2]
[359849776,1746372640770,-450.0,0.00019726,2]
[359849777,1746372640779,-450.0,0.00019726,2]
[359849778,1746372640788,-450.0,0.00019726,2]
[359849779,1746372640797,-421.90885159,0.00019726,2]
[359849780,1746372640806,-450.0,0.00019726,2]
[359849781,1746372640815,-450.0,0.00019726,2]
[359849782,1746372640825,-157.97371644,0.00019726,2]
[359849783,1746372640834,-450.0,0.00019726,2]
[359849784,1746372640844,-450.0,0.00019726,2]
[359849785,1746372640853,-450.0,0.00019726,2]
[359849786,1746372640862,-450.0,0.00019726,2]
[359849788,1746372640872,-450.0,0.00019726,2]
[359849789,1746372640881,-450.0,0.00019726,2]
[359849790,1746372640890,-450.0,0.00019726,2]
[359849791,1746372640899,-450.0,0.00019726,2]
[359849792,1746372640907,-150.40240299,0.00019726,2]
[359849793,1746372640916,-450.0,0.00019726,2]
[359849794,1746372640926,-450.0,0.00019726,2]
[359849795,1746372640935,-504.11947319,0.00019726,2]
[359849796,1746372640944,-450.0,0.00019726,2]
[359849797,1746372640953,-450.0,0.00019726,2]
[359849798,1746372640962,-450.0,0.00019726,2]
[359849799,1746372640971,-450.0,0.00019726,2]
[359849800,1746372640980,-450.0,0.00019726,2]
[359849801,1746372640990,-470.0,0.00019726,2]
[359849802,1746372640999,-500.0,0.00019726,2]
[359849803,1746372641008,-450.0,0.00019726,2]
[359849804,1746372641017,-450.0,0.00019726,2]
[359849805,1746372641026,-577.76955458,0.00019726,2]
[359849806,1746372641035,-636.06455885,0.00019726,2]
[359849807,1746372641044,-470.0,0.00019726,2]
[359849808,1746372641053,-470.0,0.00019726,2]
[359849809,1746372641062,-470.0,0.00019726,2]
[359849810,1746372641071,-450.0,0.00019726,2]
[359849811,1746372641081,-191.00398,0.00019726,2]
[359849812,1746372641090,-450.0,0.00019726,2]
[359849813,1746372641100,-450.0,0.00019726,2]
[359849814,1746372641110,-450.0,0.00019726,2]
[359849815,1746372641120,-450.0,0.00019726,2]
[359849816,1746372641130,-465.6151582,0.00019726,2]
[359849817,1746372641139,-450.0,0.00019726,2]
[359849818,1746372641148,-450.0,0.00019726,2]
[359849819,1746372641158,-517.29,0.00019726,2]
[359849820,1746372641167,-450.0,0.00019726,2]
[359849821,1746372641176,-450.0,0.00019726,2]
[359849822,1746372641185,-425.68749214,0.00019726,2]
[359849823,1746372641195,-450.0,0.00019726,2]
[359849824,1746372641205,-450.0,0.00019726,2]
[359849825,1746372641214,-450.0,0.00019726,2]
[359849826,1746372641223,-450.0,0.00019726,2]
[359849827,1746372641232,-450.0,0.00019726,2]
[359849828,1746372641241,-450.0,0.00019726,2]
[359849829,1746372641251,-450.0,0.00019726,2]
[359849830,1746372641260,-450.0,0.00019726,2]
[359849831,1746372641270,-450.0,0.00019726,2]
[359849832,1746372641279,-450.0,0.00019726,2]
[359849833,1746372641287,-450.0,0.00019726,2]
[359849834,1746372641298,-450.0,0.00019726,2]
[359849835,1746372641306,-557.53387412,0.00019726,2]
[359849836,1746372641316,-450.0,0.00019726,2]
[359849837,1746372641327,-470.0,0.00019726,2]
[359849838,1746372641337,-477.67838666,0.00019726,2]
[359849839,1746372641346,-450.0,0.00019726,2]
[359849840,1746372641355,-470.0,0.00019726,2]
[359849841,1746372641365,-450.0,0.00019726,2]
[359849842,1746372641375,-450.0,0.00019726,2]
[359849843,1746372641385,-450.0,0.00019726,2]
[359849844,1746372641395,-450.0,0.00019726,2]
[359849845,1746372641404,-211.11976776,0.00019726,2]
[359849846,1746372641414,-450.0,0.00019726,2]
[359849847,1746372641423,-450.0,0.00019726,2]
[359849848,1746372641432,-450.0,0.00019726,2]
[359849849,1746372641442,-450.0,0.00019726,2]
[359849850,1746372641451,-470.0,0.00019726,2]
[359849851,1746372641460,-450.0,0.00019726,2]
[359849852,1746372641469,-450.0,0.00019726,2]
[359849853,1746372641479,-450.0,0.00019726,2]
[359849854,1746372641488,-224.10514347,0.00019726,2]
[359849855,1746372641498,-568.21414641,0.00019726,2]
[359849856,1746372641507,-502.67311899,0.00019726,2]
[359849857,1746372641516,-487.63673835,0.00019726,2]
[359849858,1746372641525,-470.0,0.00019726,2]
[359849859,1746372641534,-450.0,0.00019726,2]
[359849860,1746372641543,-450.0,0.00019726,2]
[359849861,1746372641552,-450.0,0.00019726,2]
[359849862,1746372641561,-470.0,0.00019726,2]
[359849863,1746372641570,-584.48,0.00019726,2]
[359849864,1746372641580,-450.0,0.00019726,2]
[359849865,1746372641589,-450.0,0.00019726,2]
[359849866,1746372641599,-450.0,0.00019726,2]
[359849867,1746372641608,-450.0,0.00019726,2]
[359849868,1746372641618,-450.0,0.00019726,2]
[359849869,1746372641627,-450.0,0.00019726,2]
[359849870,1746372641637,-470.50571725,0.00019726,2]
[359849871,1746372641646,-553.0436975,0.00019726,2]
[359849872,1746372641655,-450.0,0.00019726,2]
[359849873,1746372641665,-450.0,0.00019726,2]
[359849874,1746372641674,-470.0,0.00019726,2]
[359849875,1746372641683,-450.0,0.00019726,2]
[359849876,1746372641692,-470.0,0.00019726,2]
[359849877,1746372641702,-450.0,0.00019726,2]
[359849878,1746372641712,-553.78022298,0.00019726,2]
[359849879,1746372641721,-450.0,0.00019726,2]
[359849880,1746372641730,-474.27963675,0.00019726,2]
[359849881,1746372641740,-450.0,0.00019726,2]
[359849882,1746372641749,-450.0,0.00019726,2]
[359849883,1746372641759,-450.0,0.00019726,2]
[359849884,1746372641768,-450.0,0.00019726,2]
[359849885,1746372641777,-450.0,0.00019726,2]
[359849886,1746372641786,-450.0,0.00019726,2]
[359849887,1746372641796,-475.55097383,0.00019726,2]
[359849888,1746372641806,-450.0,0.00019726,2]
[359849889,1746372641816,-450.0,0.00019726,2]
[359849890,1746372641826,-450.0,0.00019726,2]
[359849891,1746372641835,-450.0,0.00019726,2]
[359849892,1746372641845,-461.16599915,0.00019726,2]
[359849893,1746372641854,-450.0,0.00019726,2]
[359849894,1746372641863,-450.0,0.00019726,2]
[359849895,1746372641873,-450.0,0.00019726,2]
[359849896,1746372641883,-450.0,0.00019726,2]
[359849897,1746372641892,-450.0,0.00019726,2]
[359849898,1746372641902,-450.0,0.00019726,2]
[359849899,1746372641911,-450.0,0.00019726,2]
[359849900,1746372641920,-450.0,0.00019726,2]
[359849901,1746372641931,-450.0,0.00019726,2]
[359849902,1746372641941,-470.0,0.00019726,2]
[359849903,1746372641950,-450.0,0.00019726,2]
[359849904,1746372641959,-450.0,0.00019726,2]
[359849905,1746372641969,-450.0,0.00019726,2]
[359849906,1746372641979,-450.0,0.00019726,2]
[359849907,1746372641988,-450.0,0.00019726,2]
[359849908,1746372641998,-450.0,0.00019726,2]
[359849909,1746372642007,-470.93765558,0.00019726,2]
[359849910,1746372642016,-450.0,0.00019726,2]
[359849911,1746372642025,-470.0,0.00019726,2]
[359849912,1746372642035,-450.0,0.00019726,2]
[359849913,1746372642046,-450.0,0.00019726,2]
[359849914,1746372642057,-299.1856,0.00019726,2]
[359849915,1746372642067,-450.0,0.00019726,2]
[359849916,1746372642077,-450.0,0.00019726,2]
[359849917,1746372642087,-450.0,0.00019726,2]
[359849918,1746372642096,-564.76363279,0.00019726,2]
[359849919,1746372642106,-470.0,0.00019726,2]
[359849920,1746372642116,-450.0,0.00019726,2]
[359849921,1746372642125,-450.0,0.00019726,2]
[359849922,1746372642134,-450.0,0.00019726,2]
[359849923,1746372642144,-450.0,0.00019726,2]
[359849924,1746372642153,-450.0,0.00019726,2]
[359849925,1746372642163,-466.66398239,0.00019726,2]
[359849926,1746372642172,-500.0,0.00019726,2]
[359849927,1746372642182,-510.51701814,0.00019726,2]
[359849928,1746372642191,-450.0,0.00019726,2]
[359849929,1746372642203,-450.0,0.00019726,2]
[359849930,1746372642213,-470.0,0.00019726,2]
[359849931,1746372642222,-450.0,0.00019726,2]
[359849932,1746372642232,-450.0,0.00019726,2]
[359849933,1746372642242,-450.0,0.00019726,2]
[359849934,1746372642253,-406.71220572,0.00019726,2]
[359849935,1746372642262,-500.0,0.00019726,2]
[359849936,1746372642272,-450.0,0.00019726,2]
[359849937,1746372642282,-450.0,0.00019726,2]
[359849938,1746372642293,-450.0,0.00019726,2]
[359849939,1746372642302,-450.0,0.00019726,2]
[359849940,1746372642312,-450.0,0.00019726,2]
[359849941,1746372642325,-450.0,0.00019726,2]
[359849942,1746372642334,-450.0,0.00019726,2]
[359849943,1746372642345,-550.15935453,0.00019726,2]
[359849944,1746372642354,-450.0,0.00019726,2]
[359849945,1746372642366,-450.0,0.00019726,2]
[359849946,1746372642376,-450.0,0.00019726,2]
[359849947,1746372642385,-450.0,0.00019726,2]
[359849948,1746372642395,-450.0,0.00019726,2]
[359849949,1746372642405,-450.0,0.00019726,2]
[359849950,1746372642418,-450.0,0.00019726,2]
[359849951,1746372642427,-450.0,0.00019726,2]
[359849952,1746372642436,-450.0,0.00019726,2]
[359849953,1746372642446,-590.94852391,0.00019726,2]
[359849954,1746372642457,-450.0,0.00019726,2]
[359849955,1746372642466,-450.0,0.00019726,2]
[359849956,1746372642476,-450.0,0.00019726,2]
[359849957,1746372642485,-450.0,0.00019726,2]
[359849958,1746372642494,-526.21,0.00019726,2]
[359849959,1746372642504,-450.0,0.00019726,2]
[359849960,1746372642513,-450.0,0.00019726,2]
[359849961,1746372642522,-450.0,0.00019726,2]
[359849962,1746372642533,-450.0,0.00019726,2]
[359849963,1746372642544,-450.0,0.00019726,2]
[359849964,1746372642554,-523.81253278,0.00019726,2]
[359849965,1746372642563,-509.93,0.00019726,2]
[359849966,1746372642573,-529.88700632,0.00019726,2]
[359849967,1746372642582,-468.60183099,0.00019726,2]
[359849968,1746372642591,-450.0,0.00019726,2]
[359849969,1746372642601,-450.0,0.00019726,2]
[359849970,1746372642610,-450.0,0.00019726,2]
[359849971,1746372642620,-450.0,0.00019726,2]
[359849972,1746372642630,-546.94255826,0.00019726,2]
[359849973,1746372642639,-450.0,0.00019726,2]
[359849974,1746372642649,-450.0,0.00019726,2]
[359849975,1746372642658,-450.0,0.00019726,2]
[359849976,1746372642667,-473.42845793,0.00019726,2]
[359849977,1746372642677,-450.0,0.00019726,2]
[359849978,1746372642687,-450.0,0.00019726,2]
[359849979,1746372642696,-450.0,0.00019726,2]
[359849980,1746372642706,-1529.68,0.00019726,2]
[359849981,1746372642716,-450.0,0.00019726,2]
[359849982,1746372642725,-450.0,0.00019726,2]
[359849983,1746372642735,-450.0,0.00019726,2]
[359849984,1746372642744,-450.0,0.00019726,2]
[359849985,1746372642754,-450.0,0.00019726,2]
[359849986,1746372642764,-450.0,0.00019726,2]
[359849987,1746372642773,-450.0,0.00019726,2]
[359849988,1746372642783,-450.0,0.00019726,2]
[359849989,1746372642793,-490.0,0.00019726,2]
[359849990,1746372642802,-450.0,0.00019726,2]
[359849991,1746372642811,-450.0,0.00019726,2]
[359849992,1746372642821,-450.0,0.00019726,2]
[359849993,1746372642831,-450.0,0.00019726,2]
[359849994,1746372642841,-490.0,0.00019726,2]
[359849995,1746372642850,-552.37909692,0.00019726,2]
[359849996,1746372642859,-450.0,0.00019726,2]
[359849997,1746372642868,-450.0,0.00019726,2]